[Event "Early-Titled-Tuesday-Blitz-September-12-2023"]
[Site "Chess.com"]
[Date "2023.09.12"]
[Round "1"]
[White "TimofeevAr"]
[Black "GaalZsoka"]
[Result "1-0"]
[WhiteElo "2851"]
[BlackElo "2480"]
[TimeControl "180+1"]
[EndTime "8:07:58 PDT"]
[Termination "TimofeevAr won by resignation"]

1. c4 {[%clk 0:02:59]} 1... f5 {[%clk 0:02:52.9]} 2. Nc3 {[%clk 0:02:57.1]} 2...
Nf6 {[%clk 0:02:52.9]} 3. Nf3 {[%clk 0:02:55.6]} 3... g6 {[%clk 0:02:52.7]} 4.
d4 {[%clk 0:02:53.1]} 4... Bg7 {[%clk 0:02:52.7]} 5. Bf4 {[%clk 0:02:52.5]} 5...
d6 {[%clk 0:02:51.6]} 6. h3 {[%clk 0:02:50.4]} 6... O-O {[%clk 0:02:51.3]} 7. e3
{[%clk 0:02:50.2]} 7... Nbd7 {[%clk 0:02:48.3]} 8. Be2 {[%clk 0:02:48.8]} 8...
Qe8 {[%clk 0:02:45.2]} 9. d5 {[%clk 0:02:45.4]} 9... Nc5 {[%clk 0:02:22.4]} 10.
O-O {[%clk 0:02:42.8]} 10... e5 {[%clk 0:02:21.9]} 11. dxe6 {[%clk 0:02:42.1]}
11... Bxe6 {[%clk 0:02:19.3]} 12. Rc1 {[%clk 0:02:36.4]} 12... a5 {[%clk
0:02:18.7]} 13. Nd4 {[%clk 0:02:32.1]} 13... Bf7 {[%clk 0:02:15.8]} 14. Ndb5
{[%clk 0:02:31.6]} 14... Qe7 {[%clk 0:02:12.3]} 15. b3 {[%clk 0:02:23.1]} 15...
Nfe4 {[%clk 0:02:09.7]} 16. Nd5 {[%clk 0:02:20.2]} 16... Bxd5 {[%clk 0:02:04.1]}
17. cxd5 {[%clk 0:02:19]} 17... Rae8 {[%clk 0:01:39.7]} 18. Bh2 {[%clk
0:02:06.9]} 18... f4 {[%clk 0:01:29.5]} 19. exf4 {[%clk 0:01:53.5]} 19... c6
{[%clk 0:01:27.4]} 20. dxc6 {[%clk 0:01:44.2]} 20... bxc6 {[%clk 0:01:28.3]} 21.
Nd4 {[%clk 0:01:44.1]} 21... Nxf2 {[%clk 0:00:57.9]} 22. Rxf2 {[%clk 0:01:35.4]}
22... Qe3 {[%clk 0:00:37.3]} 23. Nc2 {[%clk 0:01:31.4]} 23... Qc3 {[%clk
0:00:24.3]} 24. Rf3 {[%clk 0:01:22.3]} 24... Qb2 {[%clk 0:00:19.7]} 25. Kh1
{[%clk 0:01:09.7]} 25... Rxe2 {[%clk 0:00:17.4]} 26. Qxe2 {[%clk 0:01:09.5]}
26... Qxc1+ {[%clk 0:00:17.3]} 27. Rf1 {[%clk 0:01:09.6]} 27... Qb2 {[%clk
0:00:16.4]} 28. f5 {[%clk 0:01:06.6]} 28... gxf5 {[%clk 0:00:14.3]} 29. Qc4+
{[%clk 0:00:57]} 29... Kh8 {[%clk 0:00:13.7]} 30. Bxd6 {[%clk 0:00:56.5]} 30...
Ne4 {[%clk 0:00:05.1]} 31. Bxf8 {[%clk 0:00:55.2]} 31... Ng3+ {[%clk 0:00:05.4]}
32. Kg1 {[%clk 0:00:54.8]} 32... Bxf8 {[%clk 0:00:04.6]} 33. Rd1 {[%clk
0:00:48.3]} 33... Ne4 {[%clk 0:00:04.9]} 34. Qd4+ {[%clk 0:00:39.9]} 34... Qxd4+
{[%clk 0:00:04.5]} 35. Nxd4 {[%clk 0:00:40.2]} 35... c5 {[%clk 0:00:04.1]} 36.
Nxf5 {[%clk 0:00:38.8]} 36... Nc3 {[%clk 0:00:04.1]} 37. Rd8 {[%clk 0:00:38.3]}
37... Kg8 {[%clk 0:00:04.7]} 38. a4 {[%clk 0:00:37.6]} 38... Na2 {[%clk
0:00:03.9]} 39. Ra8 {[%clk 0:00:35.9]} 39... Nc1 {[%clk 0:00:04.3]} 40. Rb8
{[%clk 0:00:35]} 40... Kf7 {[%clk 0:00:03.3]} 41. Rb5 {[%clk 0:00:33.4]} 41...
Ke6 {[%clk 0:00:03.1]} 42. g4 {[%clk 0:00:33.1]} 42... Kd5 {[%clk 0:00:02.8]}
43. Ne3+ {[%clk 0:00:29.9]} 43... Kc6 {[%clk 0:00:03.2]} 44. Nc4 {[%clk
0:00:29.7]} 44... Bg7 {[%clk 0:00:03.4]} 45. Nxa5+ {[%clk 0:00:29.8]} 45... Kd6
{[%clk 0:00:04]} 46. Nc4+ {[%clk 0:00:29.8]} 46... Kd5 {[%clk 0:00:04.2]} 47. a5
{[%clk 0:00:28.6]} 47... Bd4+ {[%clk 0:00:04.9]} 48. Kg2 {[%clk 0:00:28.3]}
48... Nxb3 {[%clk 0:00:05.4]} 49. Rxb3 {[%clk 0:00:26.9]} 49... Kxc4 {[%clk
0:00:06]} 50. a6 {[%clk 0:00:25.2]} 50... Kxb3 {[%clk 0:00:04.4]} 51. a7 {[%clk
0:00:25.4]} 51... c4 {[%clk 0:00:03.6]} 52. a8=Q {[%clk 0:00:25.6]} 52... c3
{[%clk 0:00:02.1]} 53. Qd5+ {[%clk 0:00:25.6]} 1-0

[Event "Early-Titled-Tuesday-Blitz-September-12-2023"]
[Site "Chess.com"]
[Date "2023.09.12"]
[Round "1"]
[White "Raskolnikov6"]
[Black "Gentlejimmy7"]
[Result "1-0"]
[WhiteElo "2259"]
[BlackElo "2556"]
[TimeControl "180+1"]
[EndTime "8:08:00 PDT"]
[Termination "Raskolnikov6 won by checkmate"]

1. d4 {[%clk 0:03:00.9]} 1... f5 {[%clk 0:02:57]} 2. Nc3 {[%clk 0:02:57.8]} 2...
Nf6 {[%clk 0:02:56.5]} 3. Bg5 {[%clk 0:02:58.4]} 3... d5 {[%clk 0:02:56.7]} 4.
e3 {[%clk 0:02:48.2]} 4... c6 {[%clk 0:02:56.4]} 5. h3 {[%clk 0:02:40.5]} 5...
Nbd7 {[%clk 0:02:51.8]} 6. Bd3 {[%clk 0:02:36.3]} 6... e6 {[%clk 0:02:52]} 7. g4
{[%clk 0:02:35.8]} 7... g6 {[%clk 0:02:46.1]} 8. Nge2 {[%clk 0:02:21.3]} 8...
Be7 {[%clk 0:02:45.7]} 9. Nf4 {[%clk 0:02:20.4]} 9... Nf8 {[%clk 0:02:43.6]} 10.
Qe2 {[%clk 0:02:05.7]} 10... Ne4 {[%clk 0:02:43.6]} 11. Bxe7 {[%clk 0:01:59.8]}
11... Qxe7 {[%clk 0:02:43.6]} 12. Bxe4 {[%clk 0:01:53.3]} 12... fxe4 {[%clk
0:02:42.5]} 13. f3 {[%clk 0:01:48.3]} 13... exf3 {[%clk 0:02:39]} 14. Qxf3
{[%clk 0:01:48.3]} 14... e5 {[%clk 0:02:39.7]} 15. Nfe2 {[%clk 0:01:37.5]} 15...
e4 {[%clk 0:02:35.1]} 16. Qg2 {[%clk 0:01:30.2]} 16... Ne6 {[%clk 0:02:34.7]}
17. O-O-O {[%clk 0:01:29.5]} 17... Bd7 {[%clk 0:02:32.5]} 18. Rhf1 {[%clk
0:01:25.6]} 18... O-O-O {[%clk 0:02:31.8]} 19. Nf4 {[%clk 0:01:26]} 19... Nxf4
{[%clk 0:02:31]} 20. Rxf4 {[%clk 0:01:25.4]} 20... g5 {[%clk 0:02:28.1]} 21. Rf2
{[%clk 0:01:24.1]} 21... h5 {[%clk 0:02:26.1]} 22. Rdf1 {[%clk 0:01:15.8]} 22...
hxg4 {[%clk 0:02:24.7]} 23. hxg4 {[%clk 0:01:16.7]} 23... Be6 {[%clk 0:02:24.2]}
24. Na4 {[%clk 0:01:08.1]} 24... b6 {[%clk 0:02:22.2]} 25. Rf6 {[%clk
0:01:03.2]} 25... Rh4 {[%clk 0:02:21.5]} 26. Qe2 {[%clk 0:00:55.8]} 26... Kb7
{[%clk 0:02:18.6]} 27. a3 {[%clk 0:00:21.6]} 27... Bxg4 {[%clk 0:02:10.9]} 28.
Rf7 {[%clk 0:00:16.9]} 28... Bxe2 {[%clk 0:02:03.9]} 29. Rxe7+ {[%clk
0:00:17.3]} 29... Kb8 {[%clk 0:01:54.3]} 30. Rff7 {[%clk 0:00:16.9]} 30... Ba6
{[%clk 0:01:43.1]} 31. Rxa7 {[%clk 0:00:16.8]} 31... Bc8 {[%clk 0:01:42.9]} 32.
Nxb6 {[%clk 0:00:15.6]} 32... Rh1+ {[%clk 0:01:39.2]} 33. Kd2 {[%clk 0:00:15]}
33... Rh2+ {[%clk 0:01:39.8]} 34. Kc3 {[%clk 0:00:14.3]} 34... Rd7 {[%clk
0:01:37.7]} 35. Raxd7 {[%clk 0:00:11.1]} 35... Bxd7 {[%clk 0:01:37.7]} 36. Nxd7+
{[%clk 0:00:11.8]} 36... Kc7 {[%clk 0:01:36.1]} 37. Ne5+ {[%clk 0:00:12.3]}
37... Kb6 {[%clk 0:01:34.6]} 38. Rg7 {[%clk 0:00:12.6]} 38... Re2 {[%clk
0:01:33.4]} 39. Rxg5 {[%clk 0:00:10.8]} 39... Rxe3+ {[%clk 0:01:33.9]} 40. Kd2
{[%clk 0:00:11.4]} 40... Rh3 {[%clk 0:01:33.4]} 41. Rg6 {[%clk 0:00:10.6]} 41...
Rh2+ {[%clk 0:01:34.3]} 42. Kc3 {[%clk 0:00:10.3]} 42... Rh3+ {[%clk 0:01:34.5]}
43. Kb4 {[%clk 0:00:10.8]} 43... Rh2 {[%clk 0:01:34]} 44. Rxc6+ {[%clk
0:00:11.3]} 44... Kb7 {[%clk 0:01:34.6]} 45. Rc5 {[%clk 0:00:11.9]} 45... e3
{[%clk 0:01:34.9]} 46. Nd3 {[%clk 0:00:11]} 46... Rd2 {[%clk 0:01:30]} 47. Kc3
{[%clk 0:00:10.6]} 47... Rh2 {[%clk 0:01:21.6]} 48. Rxd5 {[%clk 0:00:11.1]}
48... e2 {[%clk 0:01:22.5]} 49. Re5 {[%clk 0:00:11.4]} 49... Kb6 {[%clk
0:01:23.4]} 50. Kd2 {[%clk 0:00:11]} 50... e1=Q+ {[%clk 0:01:23]} 51. Kxe1
{[%clk 0:00:10.7]} 51... Rxc2 {[%clk 0:01:23.9]} 52. Kd1 {[%clk 0:00:10.3]}
52... Rg2 {[%clk 0:01:23.4]} 53. Re2 {[%clk 0:00:10.2]} 53... Rg4 {[%clk
0:01:22.5]} 54. Kd2 {[%clk 0:00:10.9]} 54... Rxd4 {[%clk 0:01:23]} 55. Kc3
{[%clk 0:00:11.5]} 55... Rd8 {[%clk 0:01:22.9]} 56. b4 {[%clk 0:00:12.1]} 56...
Ra8 {[%clk 0:01:22.4]} 57. Kb3 {[%clk 0:00:12.5]} 57... Rd8 {[%clk 0:01:22.7]}
58. Nc5 {[%clk 0:00:11.7]} 58... Rh8 {[%clk 0:01:23.1]} 59. Re3 {[%clk
0:00:10.8]} 59... Rh1 {[%clk 0:01:20.7]} 60. a4 {[%clk 0:00:10.6]} 60... Rb1+
{[%clk 0:01:19.6]} 61. Kc4 {[%clk 0:00:11.2]} 61... Rc1+ {[%clk 0:01:20]} 62.
Rc3 {[%clk 0:00:11.6]} 62... Rh1 {[%clk 0:01:20.5]} 63. a5+ {[%clk 0:00:12.3]}
63... Kc7 {[%clk 0:01:18.2]} 64. Re3 {[%clk 0:00:12.1]} 64... Rh4+ {[%clk
0:01:18.4]} 65. Re4 {[%clk 0:00:12.7]} 65... Rh8 {[%clk 0:01:15.8]} 66. b5
{[%clk 0:00:12.9]} 66... Kb8 {[%clk 0:01:16.7]} 67. b6 {[%clk 0:00:13.3]} 67...
Ka8 {[%clk 0:01:12.6]} 68. Kb5 {[%clk 0:00:13]} 68... Rg8 {[%clk 0:01:12.8]} 69.
a6 {[%clk 0:00:12.1]} 69... Rh8 {[%clk 0:01:11.4]} 70. Rd4 {[%clk 0:00:11.5]}
70... Rg8 {[%clk 0:01:11.3]} 71. Kc6 {[%clk 0:00:11.8]} 71... Rc8+ {[%clk
0:01:08.8]} 72. Kb5 {[%clk 0:00:11]} 72... Rh8 {[%clk 0:01:09]} 73. Rd6 {[%clk
0:00:10.9]} 73... Rg8 {[%clk 0:01:06]} 74. Rd7 {[%clk 0:00:09.9]} 74... Rh8
{[%clk 0:01:04.6]} 75. Ra7+ {[%clk 0:00:10.4]} 75... Kb8 {[%clk 0:01:04.5]} 76.
Nd7+ {[%clk 0:00:11.1]} 76... Kc8 {[%clk 0:01:04.9]} 77. Ra8+ {[%clk 0:00:11.8]}
77... Kxd7 {[%clk 0:01:05.8]} 78. Rxh8 {[%clk 0:00:12.1]} 78... Kd6 {[%clk
0:01:06.7]} 79. a7 {[%clk 0:00:12.4]} 79... Kd5 {[%clk 0:01:07.6]} 80. a8=Q+
{[%clk 0:00:12.4]} 80... Kd4 {[%clk 0:01:08.5]} 81. Qd8+ {[%clk 0:00:11.3]}
81... Kc3 {[%clk 0:01:09.4]} 82. Rh3+ {[%clk 0:00:11.3]} 82... Kc2 {[%clk
0:01:10.3]} 83. Qd3+ {[%clk 0:00:10.6]} 83... Kb2 {[%clk 0:01:10.1]} 84. Rh1
{[%clk 0:00:10.8]} 84... Ka2 {[%clk 0:01:10.1]} 85. Qc2+ {[%clk 0:00:09.9]}
85... Ka3 {[%clk 0:01:10.6]} 86. Ra1# {[%clk 0:00:09.7]} 1-0

[Event "Early-Titled-Tuesday-Blitz-September-12-2023"]
[Site "Chess.com"]
[Date "2023.09.12"]
[Round "1"]
[White "Roman_Ovetchkin"]
[Black "Zheenbekov86"]
[Result "0-1"]
[WhiteElo "2649"]
[BlackElo "2399"]
[TimeControl "180+1"]
[EndTime "8:08:01 PDT"]
[Termination "Zheenbekov86 won on time"]

1. d4 {[%clk 0:02:59.5]} 1... Nf6 {[%clk 0:02:59.4]} 2. c4 {[%clk 0:02:59.1]}
2... e6 {[%clk 0:02:59.3]} 3. g3 {[%clk 0:02:58.5]} 3... Bb4+ {[%clk 0:02:56.9]}
4. Bd2 {[%clk 0:02:58.3]} 4... Be7 {[%clk 0:02:55.3]} 5. Bg2 {[%clk 0:02:56.7]}
5... O-O {[%clk 0:02:55.1]} 6. Nf3 {[%clk 0:02:45.1]} 6... d5 {[%clk 0:02:53]}
7. Qc2 {[%clk 0:02:43.4]} 7... c6 {[%clk 0:02:52.6]} 8. O-O {[%clk 0:02:43.3]}
8... Nbd7 {[%clk 0:02:52.4]} 9. Rd1 {[%clk 0:02:40.3]} 9... b6 {[%clk
0:02:52.1]} 10. Bf4 {[%clk 0:02:40.8]} 10... Ba6 {[%clk 0:02:33.8]} 11. Nbd2
{[%clk 0:02:25.2]} 11... Bb7 {[%clk 0:02:09.8]} 12. e4 {[%clk 0:02:17.9]} 12...
Rc8 {[%clk 0:02:05.3]} 13. e5 {[%clk 0:02:12]} 13... Ne8 {[%clk 0:02:05]} 14.
cxd5 {[%clk 0:02:11.5]} 14... cxd5 {[%clk 0:02:02.8]} 15. Qa4 {[%clk 0:02:09.9]}
15... a6 {[%clk 0:02:02.4]} 16. Re1 {[%clk 0:02:09.9]} 16... b5 {[%clk
0:02:01.8]} 17. Qd1 {[%clk 0:02:09.9]} 17... Nb6 {[%clk 0:01:59.4]} 18. Bf1
{[%clk 0:02:01.1]} 18... Nc4 {[%clk 0:01:52]} 19. Rb1 {[%clk 0:02:00.6]} 19...
g6 {[%clk 0:01:30.8]} 20. Bd3 {[%clk 0:01:56.3]} 20... Ng7 {[%clk 0:01:30.6]}
21. h4 {[%clk 0:01:48.6]} 21... b4 {[%clk 0:01:04.9]} 22. Bg5 {[%clk 0:01:41.4]}
22... a5 {[%clk 0:01:01.9]} 23. Nf1 {[%clk 0:01:30]} 23... Ba6 {[%clk 0:01:01]}
24. Qe2 {[%clk 0:01:28.7]} 24... Bb7 {[%clk 0:00:53.8]} 25. N1h2 {[%clk
0:01:27.5]} 25... h5 {[%clk 0:00:51.4]} 26. Bxe7 {[%clk 0:01:22]} 26... Qxe7
{[%clk 0:00:51.1]} 27. Ng5 {[%clk 0:01:22.4]} 27... a4 {[%clk 0:00:45.6]} 28.
Rbc1 {[%clk 0:01:18.7]} 28... b3 {[%clk 0:00:38.1]} 29. a3 {[%clk 0:01:18.3]}
29... Nxa3 {[%clk 0:00:32.4]} 30. bxa3 {[%clk 0:01:15.6]} 30... Qxa3 {[%clk
0:00:32.1]} 31. Rb1 {[%clk 0:01:08.3]} 31... Qb4 {[%clk 0:00:31]} 32. g4 {[%clk
0:01:06.7]} 32... Qxd4 {[%clk 0:00:29.3]} 33. Ngf3 {[%clk 0:00:59.3]} 33... Qf4
{[%clk 0:00:26.5]} 34. gxh5 {[%clk 0:00:57.5]} 34... Nxh5 {[%clk 0:00:26.2]} 35.
Qe3 {[%clk 0:00:48.6]} 35... d4 {[%clk 0:00:22.8]} 36. Qxf4 {[%clk 0:00:42.3]}
36... Nxf4 {[%clk 0:00:22.7]} 37. Be4 {[%clk 0:00:42.5]} 37... Ba6 {[%clk
0:00:20]} 38. Nxd4 {[%clk 0:00:32.3]} 38... Rfd8 {[%clk 0:00:19.2]} 39. Nhf3
{[%clk 0:00:31.4]} 39... Rc3 {[%clk 0:00:18.2]} 40. Kh2 {[%clk 0:00:17.9]} 40...
Rb8 {[%clk 0:00:16.3]} 41. Ra1 {[%clk 0:00:15.5]} 41... Rb4 {[%clk 0:00:15]} 42.
Reb1 {[%clk 0:00:12.2]} 42... Rxf3 {[%clk 0:00:13.2]} 43. Bxf3 {[%clk
0:00:08.8]} 43... Rxd4 {[%clk 0:00:13.1]} 44. Ra3 {[%clk 0:00:07.5]} 44... Bd3
{[%clk 0:00:11.8]} 45. Rb2 {[%clk 0:00:06.6]} 45... Bc2 {[%clk 0:00:11.7]} 46.
Kg3 {[%clk 0:00:06.9]} 46... Nd3 {[%clk 0:00:11.7]} 47. Bc6 {[%clk 0:00:02.5]}
47... Nxb2 {[%clk 0:00:11.3]} 48. f4 {[%clk 0:00:01.8]} 48... Nc4 {[%clk
0:00:11.2]} 49. Ra1 {[%clk 0:00:01.4]} 49... a3 {[%clk 0:00:11.3]} 0-1

[Event "Early-Titled-Tuesday-Blitz-September-12-2023"]
[Site "Chess.com"]
[Date "2023.09.12"]
[Round "1"]
[White "MasterKroket"]
[Black "DopplerCharlotteDeWitte"]
[Result "1-0"]
[WhiteElo "2397"]
[BlackElo "2667"]
[TimeControl "180+1"]
[EndTime "8:08:02 PDT"]
[Termination "MasterKroket won by resignation"]

1. d4 {[%clk 0:03:00.9]} 1... Nf6 {[%clk 0:02:58.7]} 2. c4 {[%clk 0:03:00.2]}
2... e6 {[%clk 0:02:59]} 3. Bg5 {[%clk 0:02:53.5]} 3... h6 {[%clk 0:02:52.1]} 4.
Bxf6 {[%clk 0:02:53.8]} 4... Qxf6 {[%clk 0:02:53]} 5. e3 {[%clk 0:02:53.9]} 5...
b6 {[%clk 0:02:47.6]} 6. Nc3 {[%clk 0:02:48.9]} 6... Bb7 {[%clk 0:02:43.9]} 7.
f3 {[%clk 0:02:45.9]} 7... Bb4 {[%clk 0:02:21.2]} 8. Bd3 {[%clk 0:02:43.2]} 8...
c5 {[%clk 0:02:17.3]} 9. Ne2 {[%clk 0:02:37.7]} 9... Qg5 {[%clk 0:02:13]} 10.
Kf2 {[%clk 0:02:36.7]} 10... O-O {[%clk 0:02:09.3]} 11. Be4 {[%clk 0:02:23.6]}
11... Nc6 {[%clk 0:02:01.2]} 12. f4 {[%clk 0:02:18.2]} 12... Qf6 {[%clk
0:01:53.5]} 13. d5 {[%clk 0:02:12.2]} 13... Na5 {[%clk 0:01:53.2]} 14. Qd3
{[%clk 0:02:06.4]} 14... Bxc3 {[%clk 0:01:43.5]} 15. Nxc3 {[%clk 0:02:01.8]}
15... e5 {[%clk 0:01:37]} 16. g3 {[%clk 0:01:59.3]} 16... d6 {[%clk 0:01:36.5]}
17. h4 {[%clk 0:01:46.7]} 17... exf4 {[%clk 0:01:34.4]} 18. gxf4 {[%clk
0:01:43.5]} 18... Rae8 {[%clk 0:01:25.5]} 19. Rag1 {[%clk 0:01:42.9]} 19... Kh8
{[%clk 0:01:25.3]} 20. Rg5 {[%clk 0:01:31.6]} 20... Qe7 {[%clk 0:01:21]} 21. Rg3
{[%clk 0:01:07]} 21... Bc8 {[%clk 0:01:00]} 22. h5 {[%clk 0:00:59.3]} 22... f5
{[%clk 0:00:56.1]} 23. Bf3 {[%clk 0:00:56]} 23... Rf7 {[%clk 0:00:49.2]} 24. Rg6
{[%clk 0:00:53.5]} 24... a6 {[%clk 0:00:44.2]} 25. Ne2 {[%clk 0:00:51.3]} 25...
b5 {[%clk 0:00:41]} 26. b3 {[%clk 0:00:49.4]} 26... bxc4 {[%clk 0:00:41]} 27.
bxc4 {[%clk 0:00:50.3]} 27... Qb7 {[%clk 0:00:31.5]} 28. Qc3 {[%clk 0:00:44.6]}
28... Qb4 {[%clk 0:00:29.6]} 29. Qxb4 {[%clk 0:00:43.7]} 29... cxb4 {[%clk
0:00:30.5]} 30. Rxd6 {[%clk 0:00:29.9]} 30... Nxc4 {[%clk 0:00:30.5]} 31. Rc6
{[%clk 0:00:27.9]} 31... Nd2 {[%clk 0:00:27.2]} 32. Nd4 {[%clk 0:00:25.3]} 32...
Bb7 {[%clk 0:00:24.6]} 33. Rd6 {[%clk 0:00:22.6]} 33... a5 {[%clk 0:00:16.2]}
34. Rd1 {[%clk 0:00:21.8]} 34... Nxf3 {[%clk 0:00:14.7]} 35. Kxf3 {[%clk
0:00:21.3]} 35... Rc8 {[%clk 0:00:11.7]} 36. Nc6 {[%clk 0:00:20.3]} 36... Rfc7
{[%clk 0:00:10.7]} 37. Nxa5 {[%clk 0:00:19.5]} 37... Ba8 {[%clk 0:00:11.1]} 38.
Rd4 {[%clk 0:00:18.7]} 38... Rc5 {[%clk 0:00:10.5]} 39. Nc6 {[%clk 0:00:17.8]}
39... Bxc6 {[%clk 0:00:10.2]} 40. dxc6 {[%clk 0:00:17.4]} 40... R5xc6 {[%clk
0:00:11.1]} 41. Rxc6 {[%clk 0:00:15.9]} 41... Rxc6 {[%clk 0:00:12]} 42. Rxb4
{[%clk 0:00:16.3]} 42... Rc2 {[%clk 0:00:12]} 43. a4 {[%clk 0:00:13.9]} 43...
Ra2 {[%clk 0:00:11.7]} 44. Rb8+ {[%clk 0:00:11.7]} 44... Kh7 {[%clk 0:00:11.8]}
45. Ra8 {[%clk 0:00:12.6]} 45... Rh2 {[%clk 0:00:11.1]} 46. a5 {[%clk
0:00:11.7]} 46... Ra2 {[%clk 0:00:10.1]} 47. a6 {[%clk 0:00:11.6]} 47... g6
{[%clk 0:00:10.2]} 48. Ra7+ {[%clk 0:00:11.3]} 48... Kg8 {[%clk 0:00:09.8]} 49.
hxg6 {[%clk 0:00:12]} 49... h5 {[%clk 0:00:09.3]} 50. Kg3 {[%clk 0:00:09.4]}
50... Ra3 {[%clk 0:00:08.3]} 51. Kh4 {[%clk 0:00:09.5]} 51... Rxe3 {[%clk
0:00:08.4]} 52. Kxh5 {[%clk 0:00:10]} 52... Rh3+ {[%clk 0:00:03.8]} 53. Kg5
{[%clk 0:00:10]} 53... Ra3 {[%clk 0:00:01.8]} 54. Kf6 {[%clk 0:00:09.9]} 54...
Rb3 {[%clk 0:00:01.6]} 55. Ra8+ {[%clk 0:00:10.2]} 1-0

[Event "Early-Titled-Tuesday-Blitz-September-12-2023"]
[Site "Chess.com"]
[Date "2023.09.12"]
[Round "1"]
[White "masterofpuppets2"]
[Black "Durarbayli"]
[Result "1/2-1/2"]
[WhiteElo "2505"]
[BlackElo "2890"]
[TimeControl "180+1"]
[EndTime "8:08:05 PDT"]
[Termination "Game drawn - insufficient material"]

1. d4 {[%clk 0:03:00.9]} 1... Nf6 {[%clk 0:02:58.7]} 2. c4 {[%clk 0:03:00.4]}
2... e6 {[%clk 0:02:59.1]} 3. Nf3 {[%clk 0:03:00.4]} 3... b6 {[%clk 0:02:59.4]}
4. g3 {[%clk 0:03:00.4]} 4... Bb7 {[%clk 0:03:00.2]} 5. Bg2 {[%clk 0:03:00.5]}
5... Bb4+ {[%clk 0:03:00.6]} 6. Bd2 {[%clk 0:03:00.2]} 6... a5 {[%clk
0:03:01.2]} 7. O-O {[%clk 0:02:59.8]} 7... O-O {[%clk 0:03:01.8]} 8. Qc2 {[%clk
0:02:59]} 8... Be4 {[%clk 0:03:00.5]} 9. Qc1 {[%clk 0:02:58.5]} 9... h6 {[%clk
0:02:58.3]} 10. a3 {[%clk 0:02:48.3]} 10... Bxd2 {[%clk 0:02:56.5]} 11. Qxd2
{[%clk 0:02:43.5]} 11... d6 {[%clk 0:02:54.8]} 12. Nc3 {[%clk 0:02:39.4]} 12...
Bb7 {[%clk 0:02:55.4]} 13. Qc2 {[%clk 0:02:34.6]} 13... Nbd7 {[%clk 0:02:54.3]}
14. e4 {[%clk 0:02:32.7]} 14... e5 {[%clk 0:02:54.9]} 15. Rad1 {[%clk
0:02:31.1]} 15... Re8 {[%clk 0:02:55.2]} 16. Rfe1 {[%clk 0:02:31]} 16... c6
{[%clk 0:02:36.3]} 17. b3 {[%clk 0:02:27.1]} 17... Qc7 {[%clk 0:02:36.5]} 18. h3
{[%clk 0:02:26.7]} 18... Rad8 {[%clk 0:02:36.4]} 19. Nh4 {[%clk 0:02:21.2]}
19... Nf8 {[%clk 0:02:36]} 20. Nf5 {[%clk 0:02:18.2]} 20... Bc8 {[%clk
0:02:35.3]} 21. d5 {[%clk 0:02:15.2]} 21... Bxf5 {[%clk 0:02:26.9]} 22. exf5
{[%clk 0:02:14.1]} 22... cxd5 {[%clk 0:02:19.4]} 23. Nxd5 {[%clk 0:02:06.8]}
23... Nxd5 {[%clk 0:02:19.7]} 24. Bxd5 {[%clk 0:02:07.7]} 24... Nh7 {[%clk
0:02:17.7]} 25. Bg2 {[%clk 0:01:53.2]} 25... Nf6 {[%clk 0:02:13.9]} 26. Qb2
{[%clk 0:01:48.4]} 26... Qc8 {[%clk 0:02:09]} 27. g4 {[%clk 0:01:41.4]} 27...
Qc5 {[%clk 0:01:59.6]} 28. Re2 {[%clk 0:01:32.6]} 28... e4 {[%clk 0:01:50.4]}
29. Rde1 {[%clk 0:01:28.1]} 29... d5 {[%clk 0:01:48.9]} 30. cxd5 {[%clk
0:01:25.6]} 30... Rxd5 {[%clk 0:01:18.6]} 31. Bxe4 {[%clk 0:01:14.5]} 31... Nxe4
{[%clk 0:00:57.7]} 32. Rxe4 {[%clk 0:01:14]} 32... Rxe4 {[%clk 0:00:58.6]} 33.
Rxe4 {[%clk 0:01:13.7]} 33... Rd1+ {[%clk 0:00:59.2]} 34. Kg2 {[%clk 0:01:05.7]}
34... Qd5 {[%clk 0:00:58]} 35. Qe5 {[%clk 0:00:46.9]} 35... Qxb3 {[%clk
0:00:29.5]} 36. f6 {[%clk 0:00:42.8]} 36... Qd3 {[%clk 0:00:19]} 37. Qe8+ {[%clk
0:00:24.8]} 37... Kh7 {[%clk 0:00:19.1]} 38. Re3 {[%clk 0:00:19.1]} 38... Qf1+
{[%clk 0:00:12.7]} 39. Kg3 {[%clk 0:00:19.2]} 39... Qg1+ {[%clk 0:00:12.9]} 40.
Kf3 {[%clk 0:00:18.5]} 40... Qh1+ {[%clk 0:00:13.1]} 41. Kg3 {[%clk 0:00:18.3]}
41... Rg1+ {[%clk 0:00:10.6]} 42. Kh4 {[%clk 0:00:12.6]} 42... Qd5 {[%clk
0:00:05.5]} 43. Qe4+ {[%clk 0:00:08.6]} 43... Qxe4 {[%clk 0:00:05.5]} 44. Rxe4
{[%clk 0:00:09.5]} 44... g5+ {[%clk 0:00:03.9]} 45. Kh5 {[%clk 0:00:08.9]} 45...
Rh1 {[%clk 0:00:04.7]} 46. Re3 {[%clk 0:00:08.9]} 46... b5 {[%clk 0:00:05]} 47.
Rb3 {[%clk 0:00:08.4]} 47... b4 {[%clk 0:00:05]} 48. axb4 {[%clk 0:00:08.6]}
48... axb4 {[%clk 0:00:05.9]} 49. f4 {[%clk 0:00:08]} 49... gxf4 {[%clk
0:00:04.1]} 50. Kh4 {[%clk 0:00:08.3]} 50... Rg1 {[%clk 0:00:03.7]} 51. Rxb4
{[%clk 0:00:07.8]} 51... f3 {[%clk 0:00:04.1]} 52. Rf4 {[%clk 0:00:08]} 52...
Rf1 {[%clk 0:00:03.5]} 53. Kg3 {[%clk 0:00:08.4]} 53... Kg6 {[%clk 0:00:04.2]}
54. Rxf3 {[%clk 0:00:07.5]} 54... Rxf3+ {[%clk 0:00:03.7]} 55. Kxf3 {[%clk
0:00:08.4]} 55... Kxf6 {[%clk 0:00:04.3]} 56. Kf4 {[%clk 0:00:08.6]} 56... Ke6
{[%clk 0:00:04.1]} 57. h4 {[%clk 0:00:08.5]} 57... Kf6 {[%clk 0:00:04.8]} 58.
g5+ {[%clk 0:00:07.6]} 58... hxg5+ {[%clk 0:00:04]} 59. hxg5+ {[%clk 0:00:08.5]}
59... Kg6 {[%clk 0:00:04.8]} 60. Kg4 {[%clk 0:00:08.9]} 60... f6 {[%clk
0:00:05.7]} 61. gxf6 {[%clk 0:00:09.3]} 61... Kxf6 {[%clk 0:00:06.6]} 1/2-1/2